fUSD/lending_fUSD_20250504
["ID","MTS","AMOUNT","RATE_DAILY","PERIOD"]
[359831542,1746361834137,-450.0,0.00019726,2]
[359831543,1746361834146,-450.0,0.00019726,2]
[359831544,1746361834155,-450.0,0.00019726,2]
[359831545,1746361834164,-450.0,0.00019726,2]
[359831546,1746361834173,-450.0,0.00019726,2]
[359831547,1746361834182,-450.0,0.00019726,2]
[359831548,1746361834191,-450.0,0.00019726,2]
[359831549,1746361834200,-450.0,0.00019726,2]
[359831550,1746361834209,-450.0,0.00019726,2]
[359831551,1746361834220,-450.0,0.00019726,2]
[359831552,1746361834229,-450.0,0.00019726,2]
[359831553,1746361834238,-450.0,0.00019726,2]
[359831554,1746361834247,-450.0,0.00019726,2]
[359831555,1746361834256,-450.0,0.00019726,2]
[359831556,1746361834266,-450.0,0.00019726,2]
[359831557,1746361834275,-467.57,0.00019726,2]
[359831558,1746361834284,-450.0,0.00019726,2]
[359831559,1746361834294,-450.0,0.00019726,2]
[359831560,1746361834303,-450.0,0.00019726,2]
[359831561,1746361834312,-190.97614822,0.00019726,2]
[359831562,1746361834326,-259.02385178,0.00019726,2]
[359831563,1746361834335,-450.0,0.00019726,2]
[359831564,1746361834345,-450.0,0.00019726,2]
[359831565,1746361834354,-450.0,0.00019726,2]
[359831566,1746361834363,-450.0,0.00019726,2]
[359831567,1746361834372,-450.0,0.00019726,2]
[359831568,1746361834382,-450.0,0.00019726,2]
[359831569,1746361834391,-450.0,0.00019726,2]
[359831570,1746361834400,-450.0,0.00019726,2]
[359831571,1746361834409,-450.0,0.00019726,2]
[359831572,1746361834418,-450.0,0.00019726,2]
[359831573,1746361834427,-450.0,0.00019726,2]
[359831574,1746361834437,-450.0,0.00019726,2]
[359831575,1746361834446,-450.0,0.00019726,2]
[359831576,1746361834455,-450.0,0.00019726,2]
[359831577,1746361834464,-450.0,0.00019726,2]
[359831578,1746361834474,-450.0,0.00019726,2]
[359831579,1746361834483,-125.78237456,0.00019726,2]
[359831580,1746361834699,-324.21762544,0.00019726,2]
[359831581,1746361834708,-194.11076632,0.00019726,2]
[359831582,1746361834720,-255.88923368,0.00019726,2]
[359831583,1746361834730,-246.32036394,0.00019726,2]
[359831584,1746361834742,-203.67963606,0.00019726,2]
[359831585,1746361834751,-384.27931974,0.00019726,2]
[359831590,1746361838230,-2547.105,0.00019708,2]
[359831591,1746361838286,-2813.57906416,0.00019708,2]
[359831592,1746361838347,-778.21447192,0.00019708,2]
[359831593,1746361838357,-65.72068026,0.00019726,2]
[359831594,1746361838366,-39.84636151,0.00019726,2]
[359831595,1746361838378,-510.60363849,0.00019726,2]
[359831596,1746361838387,-314.33122102,0.00019726,2]
[359831597,1746361838398,-135.66877898,0.00019726,2]
[359831598,1746361838408,-450.0,0.00019726,2]
[359831599,1746361838417,-368.16006303,0.00019726,2]
[359831600,1746361838428,-81.83993697,0.00019726,2]
[359831601,1746361838437,-243.53427065,0.00019726,2]
[359831602,1746361838446,-30.07410779,0.00019726,2]
[359831603,1746361838457,-419.92589221,0.00019726,2]
[359831604,1746361838466,-191.77908597,0.00019726,2]
[359831605,1746361838482,-258.22091403,0.00019726,2]
[359831606,1746361838491,-450.0,0.00019726,2]
[359831607,1746361838500,-450.0,0.00019726,2]
[359831608,1746361838510,-450.0,0.00019726,2]
[359831609,1746361838519,-450.0,0.00019726,2]
[359831610,1746361838528,-450.0,0.00019726,2]
[359831611,1746361838538,-450.0,0.00019726,2]
[359831612,1746361838547,-450.0,0.00019726,2]
[359831613,1746361838557,-450.0,0.00019726,2]
[359831614,1746361838566,-450.0,0.00019726,2]
[359831615,1746361838575,-450.0,0.00019726,2]
[359831616,1746361838584,-450.0,0.00019726,2]
[359831617,1746361838593,-450.0,0.00019726,2]
[359831618,1746361838603,-450.0,0.00019726,2]
[359831619,1746361838611,-450.0,0.00019726,2]
[359831620,1746361838621,-450.0,0.00019726,2]
[359831622,1746361838630,-450.0,0.00019726,2]
[359831624,1746361838640,-459.91,0.00019726,2]
[359831626,1746361838649,-450.0,0.00019726,2]
[359831628,1746361838658,-450.0,0.00019726,2]
[359831630,1746361838667,-260.37,0.00019726,2]
[359831632,1746361838676,-501.98,0.00019726,2]
[359831634,1746361838685,-450.0,0.00019726,2]
[359831636,1746361838695,-450.0,0.00019726,2]
[359831638,1746361838704,-564.01,0.00019726,2]
[359831640,1746361838713,-450.0,0.00019726,2]
[359831642,1746361838722,-450.0,0.00019726,2]
[359831644,1746361838732,-450.0,0.00019726,2]
[359831647,1746361838741,-450.0,0.00019726,2]
[359831650,1746361838750,-221.42,0.00019726,2]
[359831653,1746361838759,-450.0,0.00019726,2]
[359831655,1746361838768,-323.69,0.00019726,2]
[359831657,1746361838777,-450.0,0.00019726,2]
[359831659,1746361838787,-450.0,0.00019726,2]
[359831661,1746361838796,-450.0,0.00019726,2]
[359831662,1746361838805,-524.96735025,0.00019726,2]
[359831663,1746361838815,-12884.07797033,0.00019726,2]
[359831664,1746361838831,-636.662962,0.00019726,2]
[359831665,1746361838843,-6778.70906767,0.00019726,2]
[359831666,1746361838852,-450.0,0.00019726,2]
[359831667,1746361838865,-450.0,0.00019726,2]
[359831668,1746361838874,-1103.2,0.00019726,2]
[359831669,1746361838883,-450.0,0.00019726,2]
[359831670,1746361838892,-450.0,0.00019726,2]
[359831671,1746361838902,-450.0,0.00019726,2]
[359831673,1746361838911,-542.45100923,0.00019726,2]
[359831675,1746361838920,-450.0,0.00019726,2]
[359831677,1746361838930,-4154.09,0.00019726,2]
[359831679,1746361838939,-450.0,0.00019726,2]
[359831681,1746361838948,-450.0,0.00019726,2]
[359831683,1746361838957,-450.0,0.00019726,2]
[359831685,1746361838966,-450.0,0.00019726,2]
[359831687,1746361838976,-450.0,0.00019726,2]
[359831689,1746361838985,-450.0,0.00019726,2]
[359831691,1746361838994,-450.0,0.00019726,2]
[359831693,1746361839003,-450.0,0.00019726,2]
[359831695,1746361839013,-450.0,0.00019726,2]
[359831697,1746361839023,-450.0,0.00019726,2]
[359831699,1746361839032,-221.5499231,0.00019726,2]
[359831702,1746361839044,-228.4500769,0.00019726,2]
[359831721,1746361839227,-450.0,0.00019726,2]
[359831724,1746361839236,-796.90296587,0.00019726,2]
[359831726,1746361839248,-1213.83625449,0.00019726,2]
[359831850,1746361840494,-361.45077964,0.00019726,2]
[359831852,1746361840503,-286.50279339,0.00019726,2]
[359831854,1746361840514,-163.49720661,0.00019726,2]
[359831856,1746361840524,-450.0,0.00019726,2]
[359831858,1746361840533,-312.79026005,0.00019726,2]
[359831860,1746361840546,-137.20973995,0.00019726,2]
[359831862,1746361840555,-357.79026,0.00019726,2]
[359831864,1746361840566,-92.20974,0.00019726,2]
[359831866,1746361840576,-294.0651197,0.00019726,2]
[359831867,1746361840585,-450.0,0.00019726,2]
[359831869,1746361840594,-450.0,0.00019726,2]
[359831871,1746361840603,-450.0,0.00019726,2]
[359831873,1746361840613,-450.0,0.00019726,2]
[359831875,1746361840622,-450.0,0.00019726,2]
[359831877,1746361840631,-450.0,0.00019726,2]
[359831878,1746361840641,-450.0,0.00019726,2]
[359831880,1746361840650,-450.0,0.00019726,2]
[359831882,1746361840659,-186.77213404,0.00019726,2]
[359831884,1746361840668,-393.66,0.00019726,2]
[359831886,1746361840676,-450.0,0.00019726,2]
[359831887,1746361840686,-450.0,0.00019726,2]
[359831889,1746361840695,-450.0,0.00019726,2]
[359831891,1746361840704,-450.0,0.00019726,2]
[359831893,1746361840713,-450.0,0.00019726,2]
[359831895,1746361840722,-450.0,0.00019726,2]
[359831896,1746361840731,-450.0,0.00019726,2]
[359831898,1746361840742,-450.0,0.00019726,2]
[359831901,1746361840760,-450.0,0.00019726,2]
[359831903,1746361840773,-567.61,0.00019726,2]
[359831905,1746361840782,-450.0,0.00019726,2]
[359831907,1746361840792,-450.0,0.00019726,2]
[359831909,1746361840801,-450.0,0.00019726,2]
[359831911,1746361840811,-450.000002,0.00019726,2]
[359831913,1746361840820,-450.0,0.00019726,2]
[359831914,1746361840829,-450.0,0.00019726,2]
[359831916,1746361840839,-450.0,0.00019726,2]
[359831918,1746361840848,-450.0,0.00019726,2]
[359831920,1746361840859,-450.0,0.00019726,2]
[359831922,1746361840869,-450.0,0.00019726,2]
[359831924,1746361840879,-450.0,0.00019726,2]
[359831926,1746361840888,-450.0,0.00019726,2]
[359831928,1746361840898,-450.0,0.00019726,2]
[359831930,1746361840908,-450.0,0.00019726,2]
[359831931,1746361840917,-450.0,0.00019726,2]
[359831933,1746361840926,-450.0,0.00019726,2]
[359831935,1746361840936,-450.0,0.00019726,2]
[359831937,1746361840947,-566.7,0.00019726,2]
[359831939,1746361840956,-450.0,0.00019726,2]
[359831941,1746361840966,-336.36,0.00019726,2]
[359831943,1746361840975,-450.0,0.00019726,2]
[359831945,1746361840985,-450.0,0.00019726,2]
[359831947,1746361840994,-450.0,0.00019726,2]
[359831949,1746361841004,-450.0,0.00019726,2]
[359831951,1746361841013,-450.0,0.00019726,2]
[359831952,1746361841023,-450.0,0.00019726,2]
[359831954,1746361841033,-450.0,0.00019726,2]
[359831956,1746361841042,-19052.59960894,0.00019726,2]
[359831958,1746361841055,-6223.95118902,0.00019726,2]
[359831960,1746361841067,-500.0,0.00019726,2]
[359831963,1746361841078,-577.46205938,0.00019726,2]
[359831965,1746361841089,-265.9048363,0.00019726,2]
[359831967,1746361841101,-2397.45230636,0.00019726,2]
[359831969,1746361841111,-450.0,0.00019726,2]
[359831970,1746361841120,-450.0,0.00019726,2]
[359831972,1746361841129,-450.0,0.00019726,2]
[359831974,1746361841139,-450.0,0.00019726,2]
[359831976,1746361841148,-450.0,0.00019726,2]
[359831978,1746361841157,-450.0,0.00019726,2]
[359831980,1746361841167,-450.0,0.00019726,2]
[359831982,1746361841175,-450.0,0.00019726,2]
[359831984,1746361841185,-450.0,0.00019726,2]
[359831985,1746361841195,-450.0,0.00019726,2]
[359831987,1746361841204,-450.0,0.00019726,2]
[359831989,1746361841214,-450.0,0.00019726,2]
[359831991,1746361841223,-1658.11,0.00019726,2]
[359831993,1746361841233,-399.08121628,0.00019726,2]
[359831995,1746361841245,-50.91878372,0.00019726,2]
[359831997,1746361841254,-450.0,0.00019726,2]
[359831999,1746361841263,-366.97892825,0.00019726,2]
[359832001,1746361841275,-1237.61107175,0.00019726,2]
[359832003,1746361841284,-450.0,0.00019726,2]
[359832005,1746361841294,-450.0,0.00019726,2]
[359832007,1746361841304,-450.0,0.00019726,2]
[359832009,1746361841313,-450.0,0.00019726,2]
[359832011,1746361841323,-450.0,0.00019726,2]
[359832013,1746361841332,-302.95763581,0.00019726,2]
[359832015,1746361841343,-147.04236419,0.00019726,2]
[359832017,1746361841352,-450.0,0.00019726,2]
[359832018,1746361841362,-402.95763581,0.00019726,2]
[359832021,1746361841373,-47.04236419,0.00019726,2]
[359832022,1746361841382,-450.0,0.00019726,2]
[359832024,1746361841391,-450.0,0.00019726,2]
[359832026,1746361841401,-450.0,0.00019726,2]
[359832028,1746361841410,-450.0,0.00019726,2]
[359832030,1746361841419,-617.38,0.00019726,2]
[359832032,1746361841428,-450.0,0.00019726,2]
[359832034,1746361841438,-450.0,0.00019726,2]
[359832035,1746361841447,-450.0,0.00019726,2]
[359832036,1746361841457,-450.0,0.00019726,2]
[359832037,1746361841466,-450.0,0.00019726,2]
[359832038,1746361841475,-1492.29,0.00019726,2]
[359832039,1746361841484,-731.7,0.00019726,2]
[359832040,1746361841493,-450.0,0.00019726,2]
[359832041,1746361841502,-450.0,0.00019726,2]
[359832042,1746361841510,-450.0,0.00019726,2]
[359832043,1746361841520,-450.0,0.00019726,2]
[359832044,1746361841529,-505.39,0.00019726,2]
[359832045,1746361841539,-450.0,0.00019726,2]
[359832046,1746361841548,-467.9,0.00019726,2]
[359832047,1746361841557,-430.05,0.00019726,2]
[359832048,1746361841567,-450.0,0.00019726,2]
[359832049,1746361841577,-450.0,0.00019726,2]
[359832050,1746361841585,-450.0,0.00019726,2]
[359832051,1746361841594,-450.0,0.00019726,2]
[359832052,1746361841603,-450.0,0.00019726,2]
[359832053,1746361841612,-450.0,0.00019726,2]
[359832055,1746361841621,-450.0,0.00019726,2]
[359832056,1746361841630,-567.18,0.00019726,2]
[359832058,1746361841639,-648.38,0.00019726,2]
[359832060,1746361841648,-450.0,0.00019726,2]
[359832062,1746361841657,-259.06140947,0.00019726,2]
[359832064,1746361841666,-450.0,0.00019726,2]
[359832066,1746361841675,-450.0,0.00019726,2]
[359832068,1746361841685,-450.0,0.00019726,2]
[359832070,1746361841694,-450.0,0.00019726,2]
[359832072,1746361841703,-450.0,0.00019726,2]
[359832074,1746361841712,-450.0,0.00019726,2]
[359832076,1746361841721,-1492.46,0.00019726,2]
[359832078,1746361841731,-171.92504002,0.00019726,2]
[359832080,1746361841740,-526.43,0.00019726,2]
[359832082,1746361841749,-450.0,0.00019726,2]
[359832084,1746361841758,-268.4,0.00019726,2]
[359832086,1746361841768,-509.93,0.00019726,2]
[359832088,1746361841778,-450.0,0.00019726,2]
[359832090,1746361841787,-450.0,0.00019726,2]
[359832092,1746361841796,-1485.51,0.00019726,2]
[359832094,1746361841805,-1097.17,0.00019726,2]
[359832096,1746361841815,-570.74,0.00019726,2]
[359832098,1746361841824,-450.95,0.00019726,2]
[359832100,1746361841834,-974.38,0.00019726,2]
[359832102,1746361841843,-450.0,0.00019726,2]
[359832104,1746361841852,-450.0,0.00019726,2]
[359832105,1746361841864,-450.0,0.00019726,2]
[359832107,1746361841874,-450.0,0.00019726,2]
[359832109,1746361841883,-450.0,0.00019726,2]
[359832111,1746361841893,-450.0,0.00019726,2]
[359832112,1746361841902,-450.0,0.00019726,2]
[359832114,1746361841911,-450.0,0.00019726,2]
[359832116,1746361841921,-240.40273022,0.00019726,2]
[359832118,1746361841930,-450.0,0.00019726,2]
[359832120,1746361841941,-450.0,0.00019726,2]
[359832122,1746361841950,-450.0,0.00019726,2]
[359832124,1746361841959,-450.0,0.00019726,2]
[359832126,1746361841969,-1097.96,0.00019726,2]
[359832128,1746361841978,-163.84,0.0001973,2]
[359832130,1746361841987,-6138.89853608,0.00019735,2]
[359832132,1746361841997,-163.84,0.0001974,2]
[359832134,1746361842006,-163.84,0.00019743,2]
[359832136,1746361842015,-163.84,0.00019743,2]
[359832138,1746361842024,-1242.38130931,0.00019748,2]
[359832140,1746361842034,-62820.46381391,0.0001975,2]
[359832142,1746361842042,-500.0,0.00019752,2]
[359832145,1746361842052,-500.0,0.00019752,2]
[359832147,1746361842061,-500.0,0.00019752,2]
[359832148,1746361842071,-450.0,0.00019753,2]
[359832150,1746361842080,-450.0,0.00019753,2]
[359832152,1746361842089,-450.0,0.00019753,2]
[359832154,1746361842098,-450.0,0.00019753,2]
[359832156,1746361842107,-450.0,0.00019753,2]
[359832158,1746361842117,-568.6,0.00019753,2]
[359832160,1746361842126,-450.0,0.00019753,2]
[359832161,1746361842135,-450.0,0.00019753,2]
[359832163,1746361842144,-450.0,0.00019753,2]
[359832165,1746361842153,-570.88714577,0.00019753,2]
[359832167,1746361842163,-450.0,0.00019753,2]
[359832169,1746361842172,-450.0,0.00019753,2]
[359832171,1746361842181,-520.12,0.00019753,2]
[359832173,1746361842191,-581.09,0.00019753,2]
[359832175,1746361842200,-450.0,0.00019753,2]
[359832177,1746361842209,-450.0,0.00019753,2]
[359832179,1746361842219,-450.0,0.00019753,2]
[359832181,1746361842229,-450.0,0.00019753,2]
[359832183,1746361842239,-450.0,0.00019753,2]
[359832186,1746361842250,-181.95620607,0.00019753,2]
[359832187,1746361842259,-450.0,0.00019753,2]
[359832189,1746361842269,-450.0,0.00019753,2]
[359832191,1746361842278,-450.0,0.00019753,2]
[359832193,1746361842287,-563.02,0.00019753,2]
[359832195,1746361842297,-450.0,0.00019753,2]
[359832197,1746361842306,-450.0,0.00019753,2]
[359832199,1746361842315,-450.0,0.00019753,2]
[359832201,1746361842324,-450.0,0.00019753,2]
[359832203,1746361842334,-450.0,0.00019753,2]
[359832205,1746361842343,-450.0,0.00019753,2]
[359832206,1746361842353,-450.0,0.00019753,2]
[359832207,1746361842362,-450.0,0.00019753,2]
[359832208,1746361842371,-475.61,0.00019753,2]
[359832210,1746361842381,-450.0,0.00019753,2]
[359832212,1746361842390,-450.0,0.00019753,2]
[359832214,1746361842399,-450.0,0.00019753,2]
[359832215,1746361842408,-450.0,0.00019753,2]
[359832217,1746361842418,-450.0,0.00019753,2]
[359832219,1746361842427,-450.0,0.00019753,2]
[359832221,1746361842437,-450.0,0.00019753,2]
[359832223,1746361842446,-450.0,0.00019753,2]
[359832225,1746361842456,-450.0,0.00019753,2]
[359832227,1746361842466,-450.0,0.00019753,2]
[359832229,1746361842475,-543.69,0.00019753,2]
[359832231,1746361842485,-450.0,0.00019753,2]
[359832234,1746361842495,-450.0,0.00019753,2]
[359832235,1746361842504,-450.0,0.00019753,2]
[359832237,1746361842514,-187.9,0.00019753,2]
[359832239,1746361842523,-565.95,0.00019753,2]
[359832241,1746361842533,-450.0,0.00019753,2]
[359832243,1746361842542,-594.97,0.00019753,2]
[359832245,1746361842551,-502.4,0.00019753,2]
[359832247,1746361842560,-450.0,0.00019753,2]
[359832249,1746361842571,-450.0,0.00019753,2]
[359832251,1746361842580,-450.0,0.00019753,2]
[359832253,1746361842590,-450.0,0.00019753,2]
[359832255,1746361842599,-450.0,0.00019753,2]
[359832257,1746361842609,-450.0,0.00019753,2]
[359832259,1746361842619,-450.0,0.00019753,2]
[359832261,1746361842628,-450.0,0.00019753,2]
[359832263,1746361842637,-323.91,0.00019753,2]
[359832264,1746361842647,-450.0,0.00019753,2]
[359832265,1746361842657,-450.0,0.00019753,2]
[359832266,1746361842666,-450.0,0.00019753,2]
[359832267,1746361842676,-450.0,0.00019753,2]
[359832268,1746361842686,-211.79,0.00019753,2]
[359832269,1746361842696,-450.0,0.00019753,2]
[359832270,1746361842706,-450.0,0.00019753,2]
[359832272,1746361842715,-450.0,0.00019753,2]
[359832273,1746361842725,-325.54,0.00019753,2]
[359832275,1746361842734,-450.0,0.00019753,2]
[359832277,1746361842743,-450.0,0.00019753,2]
[359832279,1746361842753,-394.92,0.00019753,2]
[359832281,1746361842763,-450.0,0.00019753,2]
[359832283,1746361842773,-450.0,0.00019753,2]
[359832284,1746361842783,-246.26,0.00019753,2]
[359832286,1746361842792,-450.0,0.00019753,2]
[359832288,1746361842802,-205.47,0.00019753,2]
[359832290,1746361842812,-450.0,0.00019753,2]
[359832292,1746361842821,-450.0,0.00019753,2]
[359832294,1746361842831,-450.0,0.00019753,2]
[359832295,1746361842842,-318.49,0.00019753,2]
[359832296,1746361842852,-450.0,0.00019753,2]
[359832297,1746361842866,-450.0,0.00019753,2]
[359832298,1746361842876,-450.0,0.00019753,2]
[359832299,1746361842885,-450.0,0.00019753,2]
[359832300,1746361842894,-450.0,0.00019753,2]
[359832301,1746361842903,-450.0,0.00019753,2]
[359832302,1746361842913,-450.0,0.00019753,2]
[359832303,1746361842923,-20299.45,0.00019753,2]
[359832304,1746361842933,-450.0,0.00019753,2]
[359832305,1746361842943,-450.0,0.00019753,2]
[359832306,1746361842953,-1103.2,0.00019753,2]
[359832307,1746361842962,-450.0,0.00019753,2]
[359832308,1746361842973,-450.0,0.00019753,2]
[359832309,1746361842983,-450.0,0.00019753,2]
[359832310,1746361842993,-4154.09,0.00019753,2]
[359832311,1746361843002,-450.0,0.00019753,2]
[359832312,1746361843012,-456.77347407,0.00019753,2]
[359832313,1746361843023,-450.0,0.00019753,2]
[359832314,1746361843033,-450.0,0.00019753,2]
[359832315,1746361843044,-504.08,0.00019753,2]
[359832316,1746361843054,-450.0,0.00019753,2]
[359832318,1746361843064,-450.0,0.00019753,2]
[359832319,1746361843075,-2372.19,0.00019753,2]
[359832320,1746361843085,-450.0,0.00019753,2]
[359832321,1746361843095,-450.0,0.00019753,2]
[359832322,1746361843104,-450.0,0.00019753,2]
[359832323,1746361843114,-324.09,0.00019753,2]
[359832325,1746361843123,-450.0,0.00019753,2]
[359832326,1746361843133,-450.0,0.00019753,2]
[359832327,1746361843143,-176.99,0.00019753,2]
[359832328,1746361843152,-450.0,0.00019753,2]
[359832329,1746361843161,-450.0,0.00019753,2]
[359832330,1746361843171,-450.0,0.00019753,2]
[359832331,1746361843180,-450.0,0.00019753,2]
[359832332,1746361843189,-450.0,0.00019753,2]
[359832333,1746361843199,-450.0,0.00019753,2]
[359832334,1746361843208,-450.0,0.00019753,2]
[359832335,1746361843217,-450.0,0.00019753,2]
[359832336,1746361843227,-425.77,0.00019753,2]
[359832337,1746361843237,-450.0,0.00019753,2]
[359832338,1746361843246,-450.0,0.00019753,2]
[359832339,1746361843256,-450.0,0.00019753,2]
[359832340,1746361843265,-450.0,0.00019753,2]
[359832341,1746361843275,-450.0,0.00019753,2]
[359832342,1746361843284,-450.0,0.00019753,2]
[359832343,1746361843294,-450.0,0.00019753,2]
[359832344,1746361843304,-450.0,0.00019753,2]
[359832345,1746361843314,-507.3986445,0.00019753,2]
[359832346,1746361843323,-566.7,0.00019753,2]
[359832347,1746361843332,-450.0,0.00019753,2]
[359832348,1746361843342,-450.0,0.00019753,2]
[359832349,1746361843351,-306.99,0.00019753,2]
[359832350,1746361843360,-525.77,0.00019753,2]
[359832351,1746361843370,-161.18162203,0.00019753,2]
[359832352,1746361843381,-208.32941913,0.00019753,2]
[359832353,1746361843390,-450.0,0.00019753,2]
[359832354,1746361843399,-29017.37,0.00019753,2]
[359832355,1746361843409,-450.0,0.00019753,2]
[359832356,1746361843418,-450.0,0.00019753,2]
[359832357,1746361843427,-348.92,0.00019753,2]
[359832358,1746361843437,-450.33,0.00019753,2]
[359832359,1746361843447,-450.0,0.00019753,2]
[359832360,1746361843456,-411.5546904,0.00019753,2]
[359832361,1746361843466,-450.0,0.00019753,2]
[359832362,1746361843475,-1658.11,0.00019753,2]
[359832363,1746361843485,-450.0,0.00019753,2]
[359832364,1746361843495,-450.0,0.00019753,2]
[359832365,1746361843504,-1604.59,0.00019753,2]
[359832366,1746361843514,-450.0,0.00019753,2]
[359832367,1746361843524,-526.23,0.00019753,2]
[359832368,1746361843533,-450.0,0.00019753,2]
[359832369,1746361843542,-450.0,0.00019753,2]
[359832370,1746361843552,-450.0,0.00019753,2]
[359832371,1746361843561,-450.0,0.00019753,2]
[359832372,1746361843571,-450.0,0.00019753,2]
[359832373,1746361843580,-450.0,0.00019753,2]
[359832374,1746361843589,-617.38,0.00019753,2]
[359832375,1746361843598,-450.0,0.00019753,2]
[359832376,1746361843607,-450.0,0.00019753,2]
[359832377,1746361843617,-450.0,0.00019753,2]
[359832378,1746361843626,-450.0,0.00019753,2]
[359832379,1746361843635,-450.0,0.00019753,2]
[359832380,1746361843644,-1492.29,0.00019753,2]
[359832381,1746361843654,-731.7,0.00019753,2]
[359832382,1746361843663,-450.0,0.00019753,2]
[359832383,1746361843672,-450.0,0.00019753,2]
[359832384,1746361843682,-450.0,0.00019753,2]
[359832385,1746361843691,-450.0,0.00019753,2]
[359832386,1746361843700,-467.9,0.00019753,2]
[359832387,1746361843710,-251.59912706,0.00019753,2]
[359832388,1746361843719,-450.0,0.00019753,2]
[359832389,1746361843728,-450.0,0.00019753,2]
[359832390,1746361843737,-450.0,0.00019753,2]
[359832391,1746361843747,-567.18,0.00019753,2]
[359832392,1746361843756,-648.38,0.00019753,2]
[359832393,1746361843765,-450.0,0.00019753,2]
[359832394,1746361843774,-450.0,0.00019753,2]
[359832395,1746361843783,-450.0,0.00019753,2]
[359832396,1746361843792,-450.0,0.00019753,2]
[359832397,1746361843801,-450.0,0.00019753,2]
[359832398,1746361843810,-369.44,0.00019753,2]
[359832399,1746361843819,-1492.46,0.00019753,2]
[359832400,1746361843828,-450.0,0.00019753,2]
[359832401,1746361843837,-1485.51,0.00019753,2]
[359832402,1746361843846,-1097.17,0.00019753,2]
[359832403,1746361843856,-570.74,0.00019753,2]
[359832404,1746361843868,-974.38,0.00019753,2]
[359832405,1746361843877,-450.0,0.00019753,2]
[359832406,1746361843886,-450.0,0.00019753,2]
[359832407,1746361843895,-450.0,0.00019753,2]
[359832408,1746361843906,-450.0,0.00019753,2]
[359832409,1746361843915,-450.0,0.00019753,2]
[359832410,1746361843925,-450.0,0.00019753,2]
[359832411,1746361843936,-441.0,0.00019753,2]
[359832412,1746361843945,-153.38,0.00019753,2]
[359832413,1746361843954,-450.0,0.00019753,2]
[359832414,1746361843963,-296.30003719,0.00019753,2]
[359832415,1746361843973,-450.0,0.00019753,2]
[359832416,1746361843982,-450.0,0.00019753,2]
[359832417,1746361843991,-1097.96,0.00019753,2]
[359832418,1746361844000,-632.83391156,0.00019773,2]
[359832419,1746361844009,-387.77882415,0.00019773,2]
[359832420,1746361844018,-500.0,0.00019773,2]
[359832421,1746361844027,-486.31580339,0.00019773,2]
[359832422,1746361844036,-507.35604364,0.00019773,2]
[359832423,1746361844045,-500.0,0.00019773,2]
[359832424,1746361844055,-500.0,0.00019773,2]
[359832425,1746361844239,-500.0,0.00019773,2]
[359832426,1746361844249,-500.0,0.00019773,2]
[359832427,1746361844258,-500.0,0.00019773,2]
[359832428,1746361844267,-1242.38130931,0.00019778,2]
[359832429,1746361844277,-490.14975957,0.0001978,2]